bitfinex/quotes_SOLUSD_20251223
["timestamp","ask_amount","ask_price","bid_price","bid_amount"]
[1766513871537,23.46973222,123.92,123.89,7.72284005]
[1766513871732,23.46973222,123.92,123.88,0.67]
[1766513871932,22.80973222,123.92,123.85,8.07406875]
[1766513872228,0.66,123.91,123.87,7.72284005]
[1766513872438,23.46973222,123.92,123.87,0.67]
[1766513872628,14.74,123.92,123.89,8.39284005]
[1766513872945,19.16689891,123.93,123.89,8.39284005]
[1766513873351,10.43767296,123.93,123.9,7.72284005]
[1766513873553,19.16677591,123.93,123.89,7.72284005]
[1766513874049,0.66,123.92,123.88,8.39284005]
[1766513874632,7.72284005,123.92,123.87,7.72284005]
[1766513874838,8.38284005,123.9,123.86,0.67]
[1766513875045,8.38284005,123.89,123.85,8.39284005]
[1766513875245,23.12284005,123.91,123.83,0.67]
[1766513875433,15.4,123.91,123.87,7.72284005]
[1766513876246,8.07102502,123.9,123.86,8.39284005]
[1766513876831,8.38284005,123.89,123.84,8.39284005]
[1766513877248,8.07102502,123.9,123.87,0.67]
[1766513878341,15.79386507,123.9,123.87,0.67]
[1766513879727,8.07102502,123.9,123.86,0.67]
[1766513879928,7.72284005,123.89,123.85,0.67]
[1766513880228,16.45386507,123.9,123.85,8.39284005]
[1766513880623,0.66,123.89,123.85,0.67]
[1766513880823,7.72284005,123.87,123.83,0.67]
[1766513881060,0.66,123.87,123.81,0.67]
[1766513881224,7.72284005,123.84,123.78,0.67]
[1766513881429,7.72284005,123.84,123.79,0.67]
[1766513881430,7.72284005,123.83,123.79,0.67]
[1766513881730,0.66,123.83,123.77,8.39284005]
[1766513881929,7.72284005,123.82,123.78,7.72284005]
[1766513882128,8.38284005,123.83,123.78,8.39284005]
[1766513882481,7.72284005,123.82,123.78,0.67]
[1766513882650,15.79947672,123.82,123.78,0.67]
[1766513883027,8.07663667,123.82,123.78,0.67]
[1766513883225,15.79947672,123.82,123.78,0.67]
[1766513885054,8.73663667,123.82,123.78,0.67]
[1766513885239,7.72284005,123.81,123.78,0.67]
[1766513885639,0.66,123.79,123.75,8.39284005]
[1766513887242,0.66,123.79,123.74,8.08136805]
[1766513887243,0.71,123.78,123.74,7.72284005]
[1766513887441,8.43284005,123.78,123.73,8.40284005]
[1766513887648,0.71,123.8,123.76,7.72284005]
[1766513887845,41.68766186,123.81,123.76,8.40284005]
[1766513888049,0.71,123.8,123.76,0.68]
[1766513888434,8.43284005,123.8,123.76,0.68]
[1766513888754,8.43284005,123.8,123.75,8.40284005]
[1766513888952,8.43284005,123.79,123.75,0.68]
[1766513889174,23.17284005,123.78,123.73,8.40284005]
[1766513889376,23.17284005,123.78,123.73,0.68]
[1766513889377,8.43284005,123.77,123.73,0.68]
[1766513889533,8.43284005,123.77,123.71,0.68]
[1766513889728,8.43284005,123.77,123.72,8.40284005]
[1766513890540,8.43284005,123.75,123.7,7.92284005]
[1766513890876,26.95182516,123.75,123.71,0.68]
[1766513891558,41.69182516,123.75,123.71,0.68]
[1766513891735,7.72284005,123.74,123.7,0.88]
[1766513891940,8.43284005,123.73,123.7,0.2]
[1766513892142,0.71,123.73,123.7,0.2]
[1766513892441,7.72284005,123.72,123.7,0.2]
[1766513892658,8.43284005,123.72,123.68,0.68]
[1766513892836,8.43284005,123.72,123.68,8.40284005]
[1766513892837,8.79310944,123.72,123.68,8.40284005]
[1766513893038,33.61051301,123.75,123.71,0.68]
[1766513893250,0.71,123.74,123.7,7.72284005]
[1766513893662,33.25869481,123.75,123.71,8.40284005]
[1766513893966,0.71,123.74,123.7,7.72284005]
[1766513894262,0.71,123.74,123.7,0.68]
[1766513894754,0.71,123.74,123.7,8.40284005]
[1766513894971,15.80495433,123.73,123.68,8.40284005]
[1766513895133,0.71,123.72,123.68,8.40284005]
[1766513895533,0.71,123.73,123.69,7.72284005]
[1766513895838,0.71,123.73,123.68,0.68]
[1766513896036,0.71,123.73,123.69,7.72284005]
[1766513896237,14.76,123.74,123.7,8.40284005]
[1766513896846,14.76,123.74,123.7,0.68]
[1766513897069,22.84158968,123.74,123.7,8.40284005]
[1766513897571,14.76,123.74,123.7,8.40284005]
[1766513898445,10.43767296,123.75,123.72,7.72284005]
[1766513898955,18.51851869,123.75,123.72,7.72284005]
[1766513900346,18.51851869,123.75,123.71,0.68]
[1766513900571,10.43767296,123.75,123.73,7.72284005]
[1766513900876,10.43767296,123.75,123.71,0.68]
[1766513901172,10.43767296,123.75,123.73,7.72284005]
[1766513902573,14.76,123.77,123.74,8.40284005]
[1766513902777,14.76,123.77,123.75,7.72284005]
[1766513902977,14.76,123.77,123.74,8.40284005]
[1766513903286,15.47,123.76,123.71,0.68]
[1766513903443,0.71,123.75,123.71,8.40284005]
[1766513904279,8.79089391,123.75,123.71,8.40284005]
[1766513904466,0.71,123.75,123.72,7.72284005]
[1766513904655,22.84064886,123.76,123.72,8.40284005]
[1766513904857,23.55064886,123.76,123.73,7.72284005]
[1766513906065,23.55064886,123.76,123.73,4.75751297]
[1766513906383,23.55064886,123.76,123.72,0.68]
[1766513906578,23.55064886,123.76,123.72,4.75751297]
[1766513906753,0.71,123.74,123.7,0.68]
[1766513906959,0.71,123.74,123.7,5.43751297]
[1766513907673,0.71,123.72,123.69,4.75751297]
[1766513907877,0.71,123.72,123.68,5.43751297]
[1766513908064,0.71,123.72,123.69,4.75751297]
[1766513908258,0.71,123.72,123.68,5.43751297]
[1766513908765,8.79282512,123.72,123.68,5.43751297]
[1766513909170,8.79282512,123.72,123.69,4.75751297]
[1766513910650,0.71,123.71,123.66,8.76644815]
[1766513910969,0.71,123.7,123.66,0.68]
[1766513911167,0.71,123.7,123.66,5.43751297]
[1766513912076,15.47,123.73,123.68,5.43751297]
[1766513912283,23.55234373,123.73,123.69,4.75751297]
[1766513913174,0.71,123.72,123.69,4.75751297]
[1766513913476,0.71,123.72,123.7,4.75751297]
[1766513913650,23.55234373,123.73,123.7,4.75751297]
[1766513914354,23.55234373,123.73,123.69,5.43751297]
[1766513914782,23.55234373,123.73,123.69,0.68]
[1766513914984,23.55234373,123.73,123.69,5.43751297]
[1766513915284,8.79234373,123.73,123.69,5.43751297]
[1766513915860,8.79234373,123.73,123.69,0.68]
[1766513916064,8.79234373,123.73,123.69,5.43751297]
[1766513917271,0.7,123.72,123.69,5.43751297]
[1766513918088,0.7,123.71,123.67,0.69]
[1766513918574,15.46,123.71,123.67,0.69]
[1766513918768,20.21751297,123.71,123.67,0.69]
[1766513919175,28.30154081,123.71,123.67,0.69]
[1766513919669,0.7,123.67,123.62,0.69]
[1766513919860,0.7,123.67,123.63,5.44751297]
[1766513920488,0.7,123.7,123.66,4.75751297]
[1766513920689,0.7,123.69,123.66,4.75751297]
[1766513921265,8.78508386,123.69,123.66,4.75751297]
[1766513921480,8.78508386,123.69,123.65,5.44751297]
[1766513922093,0.67,123.68,123.63,8.0884003]
[1766513922295,0.67,123.68,123.64,2.56535232]
[1766513922789,0.67,123.68,123.65,1.90535232]
[1766513923500,0.67,123.68,123.64,10.65327411]
[1766513924376,8.75553812,123.68,123.64,2.56535232]
[1766513925893,15.43,123.67,123.62,0.66]
[1766513926093,0.67,123.66,123.62,2.56535232]
[1766513926400,0.67,123.66,123.61,2.56535232]
[1766513926699,0.67,123.66,123.62,0.66]
[1766513927097,0.67,123.66,123.62,2.56535232]
[1766513927594,0.67,123.66,123.62,0.66]
[1766513927800,8.0873433,123.65,123.62,0.66]
[1766513927990,8.7573433,123.65,123.61,1.90535232]
[1766513928194,8.7573433,123.65,123.61,0.66]
[1766513928394,28.97570156,123.65,123.61,0.66]
[1766513928704,0.67,123.64,123.6,2.56535232]
[1766513929001,0.67,123.64,123.6,0.66]
[1766513929193,0.67,123.64,123.6,2.56535232]
[1766513929800,0.67,123.64,123.61,1.90535232]
[1766513930900,8.75808146,123.64,123.61,1.90535232]
[1766513931977,8.75808146,123.64,123.61,2.56535232]
[1766513932487,8.75808146,123.64,123.61,0.66]
[1766513932776,22.11962629,123.68,123.63,1.90535232]
[1766513932983,32.55729925,123.68,123.64,0.66]
[1766513933190,0.67,123.67,123.64,0.66]
[1766513933785,8.75603541,123.67,123.63,2.56535232]
[1766513934091,0.67,123.66,123.62,2.56535232]
[1766513934400,0.67,123.66,123.63,1.90535232]
[1766513934784,8.75678114,123.66,123.63,2.56535232]
[1766513935286,8.75678114,123.66,123.62,1.90535232]
[1766513935481,0.67,123.65,123.61,2.56535232]
[1766513936501,0.67,123.65,123.61,0.66]
[1766513936805,8.75799023,123.65,123.61,0.66]
[1766513937108,8.75799023,123.65,123.61,2.56535232]
[1766513940805,10.66334255,123.65,123.61,0.66]
[1766513940987,0.67,123.64,123.61,0.66]
[1766513941182,22.84688707,123.66,123.63,0.66]
[1766513941382,0.67,123.72,123.66,0.66]
[1766513941687,0.67,123.69,123.65,1.90535232]
[1766513941905,11.10767296,123.69,123.65,2.56535232]
[1766513942289,10.43767296,123.69,123.66,2.56535232]
[1766513942511,10.43767296,123.71,123.68,2.56535232]
[1766513942807,10.43767296,123.71,123.69,1.90535232]
[1766513943211,10.43767296,123.71,123.68,2.56535232]
[1766513943704,18.52110228,123.71,123.68,2.56535232]
[1766513944308,10.43767296,123.71,123.68,2.56535232]
[1766513944521,8.0830212,123.72,123.7,1.90535232]
[1766513944692,0.67,123.74,123.71,1.90535232]
[1766513945015,22.84098263,123.75,123.73,2.56535232]
[1766513945208,22.84098263,123.75,123.72,1.90535232]
[1766513945508,8.08098263,123.75,123.72,2.56535232]
[1766513945810,8.08098263,123.75,123.73,1.90535232]
[1766513945985,8.08098263,123.75,123.73,4.75783208]
[1766513946386,14.76,123.77,123.74,5.41783208]
[1766513946715,0.67,123.79,123.76,4.75783208]
[1766513946885,14.76,123.8,123.76,4.75783208]
[1766513947091,14.76,123.8,123.76,5.45783208]
[1766513947302,14.76,123.8,123.77,4.75783208]
[1766513947486,8.07712079,123.81,123.78,5.45783208]
[1766513949015,23.54645965,123.82,123.79,4.75783208]
[1766513949198,10.43767296,123.81,123.8,4.75783208]
[1766513949513,23.54539838,123.84,123.8,5.45783208]
[1766513949712,5.46783208,123.82,123.76,0.7]
[1766513949893,8.07689201,123.81,123.78,5.45783208]
[1766513950298,8.07689201,123.81,123.77,4.75783208]
[1766513950510,0.71,123.8,123.76,5.45783208]
[1766513951393,4.75783208,123.79,123.75,4.75783208]
[1766513951594,20.22783208,123.78,123.74,4.75783208]
[1766513952107,8.0795023,123.77,123.74,4.75783208]
[1766513952533,8.07883287,123.79,123.76,5.45783208]
[1766513952734,14.76,123.79,123.77,4.75783208]
[1766513953217,22.83823593,123.79,123.77,4.75783208]
[1766513953417,22.83823593,123.79,123.76,5.45783208]
[1766513953612,23.54823593,123.79,123.76,4.75783208]
[1766513953990,23.54823593,123.79,123.75,4.75783208]
[1766513954214,23.54823593,123.79,123.74,5.45783208]
[1766513954215,27.59606801,123.79,123.74,5.45783208]
[1766513954418,0.71,123.78,123.74,4.75783208]
[1766513955210,8.78922034,123.78,123.75,4.75783208]
[1766513955723,8.07922034,123.78,123.75,4.75783208]
[1766513958497,8.07922034,123.78,123.74,5.45783208]
[1766513959107,8.07922034,123.78,123.74,0.7]
[1766513959306,8.07922034,123.78,123.75,4.75783208]
[1766513960505,22.83842935,123.79,123.77,4.75783208]
[1766513961204,22.83842935,123.79,123.78,4.75783208]
[1766513961597,8.07842935,123.79,123.78,4.75783208]
[1766513962128,8.07842935,123.79,123.77,5.45783208]
[1766513963819,8.07842935,123.79,123.78,4.75783208]
[1766513964527,22.83754442,123.8,123.78,4.75783208]
[1766513964828,8.07754442,123.8,123.78,4.75783208]
[1766513965041,8.07703584,123.81,123.79,4.75783208]
[1766513965229,33.27416672,123.82,123.8,4.75783208]
[1766513965729,33.27416672,123.82,123.75,20.20137406]
[1766513966025,0.71,123.81,123.78,2.97112964]
[1766513966225,33.27416672,123.82,123.8,2.97112964]
[1766513966524,25.19767296,123.82,123.8,3.67112964]
[1766513966712,25.19767296,123.82,123.81,2.97112964]
[1766513966910,33.27391266,123.82,123.81,2.97112964]
[1766513967211,33.27391266,123.82,123.8,3.67112964]
[1766513967612,33.27391266,123.82,123.8,2.97112964]
[1766513969436,25.19767296,123.82,123.81,2.97112964]
[1766513969738,10.43767296,123.82,123.81,2.97112964]
[1766513969933,18.51391266,123.82,123.81,2.97112964]
[1766513970243,33.98391266,123.82,123.78,3.67112964]
[1766513971422,0.71,123.81,123.78,2.97112964]
[1766513971624,0.71,123.81,123.76,0.7]
[1766513971830,0.71,123.81,123.78,2.97112964]
[1766513973040,8.07754442,123.8,123.78,2.97112964]
[1766513973343,0.68,123.79,123.75,0.71]
[1766513973551,0.68,123.79,123.74,0.71]
[1766513973552,14.76,123.78,123.74,0.71]
[1766513973716,0.68,123.77,123.74,2.97112964]
[1766513974046,0.68,123.77,123.75,2.97112964]
[1766513974717,14.76,123.78,123.75,2.97112964]
[1766513974919,8.0795023,123.77,123.75,2.97112964]
[1766513975543,8.0795023,123.77,123.74,0.71]
[1766513975840,8.0795023,123.77,123.73,2.97112964]
[1766513975841,0.68,123.76,123.73,2.97112964]
[1766513976335,8.0795023,123.77,123.74,2.97112964]
[1766513976516,8.0795023,123.77,123.74,3.68112964]
[1766513977336,8.0795023,123.77,123.74,0.71]
[1766513977517,8.0795023,123.77,123.75,2.97112964]
[1766513978142,23.5191152,123.78,123.75,2.97112964]
[1766513979718,22.8391152,123.78,123.75,3.67112964]
[1766513981149,22.8391152,123.78,123.76,3.67112964]
[1766513981319,10.43767296,123.78,123.77,2.97112964]
[1766513981644,10.43767296,123.78,123.76,3.67112964]
[1766513983043,8.07779015,123.8,123.77,3.67112964]
[1766513983218,8.07779015,123.8,123.78,2.97112964]
[1766513983422,22.83696428,123.81,123.78,3.67112964]
[1766513987426,22.83696428,123.81,123.79,3.67112964]
[1766513987627,22.83696428,123.81,123.8,2.97112964]
[1766513987828,8.07641176,123.82,123.8,2.97112964]
[1766513990024,8.07641176,123.82,123.8,7.72303995]
[1766513991623,28.97701101,123.82,123.73,21.01247482]
[1766513991828,0.71,123.81,123.78,7.72303995]
[1766513992938,0.71,123.81,123.76,8.08013564]
[1766513993138,0.71,123.81,123.78,7.72303995]
[1766513993634,8.78730122,123.81,123.78,7.72303995]
[1766513994944,23.54730122,123.81,123.78,7.72303995]
[1766513995240,23.54730122,123.81,123.79,7.72303995]
[1766513996753,8.07645433,123.82,123.8,7.72303995]
[1766514001038,8.78645433,123.82,123.8,7.72303995]
[1766514001534,8.78645433,123.82,123.79,8.42303995]
[1766514001737,8.78645433,123.82,123.79,0.7]
[1766514002040,8.78645433,123.82,123.76,15.80289139]
[1766514002041,0.71,123.8,123.76,7.72303995]
[1766514002231,14.76,123.81,123.78,7.72303995]
[1766514002432,14.76,123.81,123.79,7.72303995]
[1766514003652,0.71,123.79,123.76,7.72303995]
[1766514003857,0.71,123.79,123.75,0.7]
[1766514003858,0.71,123.78,123.75,7.72303995]
[1766514004152,14.76,123.79,123.77,7.72303995]
[1766514004745,14.76,123.79,123.78,7.72303995]
[1766514004930,8.78754442,123.8,123.78,7.72303995]
[1766514005130,23.54719829,123.81,123.78,7.72303995]
[1766514005856,8.07650813,123.82,123.8,7.72303995]
[1766514006036,11.14767296,123.83,123.76,7.72303995]
[1766514006037,7.72303994,123.8,123.76,15.80287973]
[1766514006239,7.72303994,123.8,123.78,7.72303995]
[1766514008267,15.80094589,123.8,123.78,7.72303995]
[1766514009854,0.67,123.79,123.77,7.72303995]
[1766514010053,0.67,123.79,123.75,0.67]
[1766514010054,0.67,123.78,123.75,3.64171688]
[1766514010254,8.74892418,123.78,123.75,3.64171688]
[1766514010455,8.74892418,123.78,123.75,0.67]
[1766514010642,8.74892418,123.78,123.76,2.97171688]
[1766514012373,22.83841093,123.79,123.77,2.97171688]
[1766514012549,8.07841093,123.79,123.78,2.97171688]
[1766514012751,8.07777204,123.8,123.78,2.97171688]
[1766514013164,2.97171687,123.78,123.76,0.67]
[1766514013457,8.74777204,123.8,123.77,2.97171688]
[1766514013838,8.74777204,123.8,123.76,0.67]
[1766514014042,8.74777204,123.8,123.77,2.97171688]
[1766514014242,0.67,123.79,123.76,2.97171688]
[1766514014468,8.74878057,123.79,123.76,2.97171688]
[1766514015771,8.74878057,123.79,123.75,3.64171688]
[1766514015973,23.50878057,123.79,123.76,2.97171688]
[1766514018476,23.50878057,123.79,123.7,10.43767296]
[1766514018477,22.83878057,123.79,123.7,10.43767296]
[1766514018658,11.10767296,123.75,123.7,0.67]
[1766514018858,28.83938984,123.75,123.7,3.64171688]
[1766514019057,28.16938984,123.75,123.7,0.67]
[1766514019264,0.67,123.74,123.7,3.64171688]
[1766514019463,0.67,123.74,123.71,2.97171688]
[1766514019876,0.67,123.74,123.71,3.64171688]
[1766514020554,8.7517505,123.74,123.71,3.64171688]
[1766514022065,8.7517505,123.74,123.7,2.97171688]
[1766514022066,11.72346738,123.74,123.7,2.97171688]
[1766514022264,11.72346738,123.74,123.7,3.64171688]
[1766514023778,0.67,123.71,123.67,0.67]
[1766514023952,18.40171688,123.72,123.68,3.64171688]
[1766514024156,15.43,123.72,123.68,3.64171688]
[1766514024374,17.73171688,123.72,123.68,3.64171688]
[1766514024571,0.67,123.71,123.68,3.64171688]
[1766514024773,0.67,123.71,123.67,0.67]
[1766514024975,0.67,123.71,123.68,2.97171688]
[1766514025565,8.08407437,123.7,123.68,2.97171688]
[1766514026079,22.84407437,123.7,123.68,1.90466237]
[1766514027470,23.51407437,123.7,123.67,0.67]
[1766514027675,25.41873674,123.7,123.66,2.57466237]
[1766514027860,0.67,123.69,123.66,1.90466237]
[1766514028178,15.43,123.68,123.64,2.57466237]
[1766514028379,28.2942603,123.7,123.61,0.2]
[1766514028380,23.51407437,123.7,123.67,2.57466237]
[1766514028588,10.43767296,123.67,123.62,8.08905636]
[1766514028765,10.43767296,123.67,123.64,2.57466237]
[1766514028958,15.43,123.68,123.64,2.57466237]
[1766514029168,17.33466237,123.68,123.64,2.57466237]
[1766514029964,25.42067179,123.68,123.64,0.67]
[1766514030167,23.51600942,123.68,123.64,2.57466237]
[1766514030362,0.67,123.72,123.67,1.90466237]
[1766514030571,8.08231418,123.73,123.7,1.90466237]
[1766514030880,33.94998714,123.73,123.7,1.90466237]
[1766514031085,23.51231418,123.73,123.69,2.57466237]
[1766514031277,33.94998714,123.73,123.69,2.57466237]
[1766514031666,0.67,123.72,123.69,1.90466237]
[1766514032086,0.67,123.72,123.68,2.57466237]
[1766514034283,8.0834209,123.71,123.68,2.57466237]
[1766514034683,22.8434209,123.71,123.68,2.57466237]
[1766514035185,22.8434209,123.71,123.69,1.90466237]
[1766514035782,18.52002398,123.73,123.7,0.72]
[1766514035981,8.08170156,123.74,123.72,1.90466237]
[1766514036176,22.84170156,123.74,123.73,1.90466237]
[1766514036383,8.7810067,123.75,123.73,1.90466237]
[1766514036571,8.0810067,123.75,123.73,1.90466237]
[1766514037284,8.0810067,123.75,123.72,2.62466237]
[1766514037474,8.7810067,123.75,123.72,2.62466237]
[1766514037676,8.0810067,123.75,123.72,2.62466237]
[1766514038084,8.7810067,123.75,123.72,2.62466237]
[1766514039593,8.7810067,123.75,123.72,1.90466237]
[1766514039994,8.08034981,123.76,123.72,1.90466237]
[1766514040286,8.08034981,123.76,123.73,2.58466237]
[1766514041083,8.08034981,123.76,123.73,0.68]
[1766514041290,8.78034981,123.76,123.73,0.68]
[1766514042799,8.78034981,123.76,123.73,2.58466237]
[1766514043898,8.78034981,123.76,123.73,0.68]
[1766514044101,9.98501218,123.76,123.72,0.68]
[1766514044290,8.08034981,123.76,123.74,1.90466237]
[1766514044486,19.21746867,123.77,123.74,1.90466237]
[1766514044694,19.21746867,123.77,123.73,1.90466237]
[1766514045092,1.90466237,123.76,123.72,2.58466237]
[1766514045402,0.7,123.74,123.7,1.90466237]
[1766514045608,0.7,123.74,123.7,2.58466237]
[1766514046591,8.78188524,123.74,123.7,2.58466237]
[1766514047290,8.78188524,123.74,123.71,1.90466237]
[1766514048190,0.7,123.73,123.69,14.76]
[1766514048390,0.7,123.72,123.69,14.76]
[1766514049606,0.7,123.72,123.69,16.66466237]
[1766514050197,8.78309343,123.72,123.7,1.90466237]
[1766514050604,0.7,123.7,123.64,0.68]
[1766514050785,0.7,123.68,123.64,2.58466237]
[1766514050983,0.7,123.67,123.64,1.90466237]
[1766514051284,10.43767296,123.69,123.63,15.44]
[1766514051285,11.13767296,123.69,123.65,2.58466237]
[1766514051505,10.43767296,123.68,123.65,2.58466237]
[1766514053000,19.22308891,123.68,123.64,1.90466237]
[1766514053202,19.22308891,123.68,123.64,2.58466237]
[1766514055211,19.22308891,123.68,123.65,1.90466237]
[1766514055611,10.43767296,123.68,123.65,2.58466237]
[1766514057417,8.78496113,123.69,123.66,1.90466237]
[1766514057626,18.52263409,123.69,123.67,1.90466237]
[1766514058001,8.084277,123.7,123.66,1.90466237]
[1766514058221,8.084277,123.7,123.68,2.58466237]
[1766514058432,2.60466237,123.69,123.64,2.58466237]
[1766514058714,0.7,123.69,123.66,0.68]
[1766514058891,2.60466237,123.7,123.66,2.58466237]
[1766514059291,0.7,123.69,123.66,0.68]
[1766514059504,8.08538163,123.68,123.66,0.68]
[1766514059816,8.08538163,123.68,123.63,16.66466237]
[1766514059817,0.7,123.67,123.63,16.66466237]
[1766514060112,0.7,123.67,123.64,1.90466237]
[1766514060410,8.78407437,123.7,123.66,2.58466237]
[1766514060614,8.78407437,123.7,123.67,1.90466237]
[1766514060994,20.20622717,123.73,123.69,2.58466237]
[1766514061194,8.08211428,123.73,123.7,2.58466237]
[1766514063317,8.08211428,123.73,123.7,1.90466237]
[1766514064422,8.08211428,123.73,123.71,1.90466237]
[1766514065319,8.08211428,123.73,123.71,2.58466237]
[1766514065542,33.24333247,123.76,123.72,1.90466237]
[1766514065836,0.7,123.75,123.72,1.90466237]
[1766514066328,8.78109117,123.75,123.72,1.90466237]
[1766514067322,8.78109117,123.75,123.71,2.58466237]
[1766514067635,18.5180681,123.76,123.73,2.61466237]
[1766514069043,14.76,123.79,123.75,2.61466237]
[1766514069044,2.56466237,123.79,123.75,2.61466237]
[1766514069199,8.07905159,123.78,123.75,0.71]
[1766514069400,18.51672455,123.78,123.75,0.71]
[1766514069829,1.90466237,123.77,123.72,0.71]
[1766514070036,18.51672455,123.78,123.71,22.84312753]
[1766514070037,0.66,123.75,123.71,2.61466237]
[1766514070828,8.73759279,123.8,123.76,0.71]
[1766514071044,8.73759279,123.8,123.77,1.90466237]
[1766514071223,1.90466237,123.79,123.75,1.90466237]
[1766514071397,0.66,123.78,123.75,1.90466237]
[1766514071600,8.73927258,123.78,123.75,1.90466237]
[1766514071998,8.73927258,123.78,123.74,15.47]
[1766514072301,0.66,123.76,123.73,0.71]
[1766514072525,0.66,123.76,123.72,1.90466237]
[1766514073101,0.66,123.76,123.72,2.61466237]
[1766514073719,8.0799782,123.77,123.73,2.61466237]
[1766514073931,8.0799782,123.77,123.73,5.46722536]
[1766514074510,8.0799782,123.77,123.74,4.75722536]
[1766514075632,8.0799782,123.77,123.73,0.71]
[1766514075830,0.66,123.76,123.73,4.75722536]
[1766514076029,5.41722536,123.76,123.71,15.47]
[1766514076204,5.41722536,123.76,123.71,20.22722536]
[1766514076409,5.41722536,123.76,123.72,4.75722536]
[1766514077316,8.74127283,123.75,123.71,15.47]
[1766514077513,8.74127283,123.75,123.62,19.75722536]
[1766514077514,5.41722536,123.72,123.68,0.71]
[1766514077721,5.41722536,123.72,123.66,10.43767296]
[1766514077722,0.66,123.72,123.69,5.46722536]
[1766514078918,0.66,123.72,123.66,33.28409466]
[1766514079120,0.66,123.71,123.68,4.75722536]
[1766514079423,8.74355832,123.71,123.68,4.75722536]
[1766514082457,12.84078368,123.71,123.66,14.76]
[1766514082617,0.66,123.7,123.66,14.76]
[1766514082944,0.66,123.7,123.66,19.51722536]
[1766514083120,0.66,123.7,123.66,20.22722536]
[1766514083315,11.09767296,123.72,123.69,4.75722536]
[1766514083514,20.86258438,123.75,123.71,4.75722536]
[1766514083722,0.66,123.75,123.72,4.75722536]
[1766514084021,8.73971951,123.77,123.73,0.71]
[1766514084213,8.73910966,123.78,123.75,4.75722536]
[1766514084920,8.07819694,123.79,123.77,4.75722536]
[1766514085516,0.66,123.82,123.78,5.46722536]
[1766514085756,0.66,123.82,123.79,4.75722536]
[1766514086043,8.0749354,123.84,123.81,4.75722536]
[1766514086432,8.0749354,123.84,123.8,0.71]
[1766514086627,8.0749354,123.84,123.81,4.75722536]
[1766514087927,8.0749354,123.84,123.82,7.72028187]
[1766514088231,8.73453895,123.85,123.82,7.72028187]
[1766514089835,8.73453895,123.85,123.81,0.71]
[1766514090034,8.73453895,123.85,123.82,7.72028187]
[1766514091433,8.73453895,123.85,123.81,8.43028187]
[1766514091746,36.64052933,123.85,123.81,8.43028187]
[1766514092122,28.92024746,123.85,123.81,8.43028187]
[1766514093451,28.26024746,123.85,123.81,7.72028187]
[1766514093638,0.68,123.81,123.71,0.66]
[1766514093840,8.40028187,123.81,123.75,0.66]
[1766514094040,8.40028187,123.81,123.76,8.38028187]
[1766514094536,8.40028187,123.77,123.73,8.38028187]
[1766514094752,8.40028187,123.77,123.73,0.66]
[1766514095129,16.480292,123.77,123.73,8.38028187]
[1766514096749,8.76001013,123.77,123.74,7.72028187]
[1766514098429,8.07910571,123.78,123.74,8.43028187]
[1766514098630,26.89641803,123.79,123.75,8.43028187]
[1766514099652,8.38028187,123.78,123.74,7.72028187]
[1766514099835,8.38028187,123.78,123.74,8.43028187]
[1766514100238,0.66,123.78,123.74,8.43028187]
[1766514100538,8.73923158,123.78,123.74,8.43028187]
[1766514102552,16.45951345,123.78,123.74,8.43028187]
[1766514103262,8.73923158,123.78,123.74,8.43028187]
[1766514103430,8.73923158,123.78,123.74,0.71]
[1766514103629,8.73923158,123.78,123.74,8.43028187]
[1766514104946,8.73923158,123.78,123.75,7.72028187]
[1766514105164,8.73923158,123.78,123.75,0.71]
[1766514106050,10.43767296,123.79,123.76,8.43028187]
[1766514108240,18.51598365,123.79,123.76,8.43028187]
[1766514108666,18.51598365,123.79,123.75,22.48028187]
[1766514108667,0.66,123.78,123.75,22.48028187]
[1766514108840,26.23626552,123.79,123.75,23.19028187]
[1766514109042,26.89626552,123.79,123.75,23.19028187]
[1766514109960,7.72028187,123.78,123.75,14.76]
[1766514110167,0.66,123.77,123.73,23.19028187]
[1766514110463,0.66,123.77,123.73,8.43028187]
[1766514111259,8.74003437,123.77,123.73,8.43028187]
[1766514112153,0.66,123.77,123.74,8.43028187]
[1766514113466,0.66,123.77,123.72,0.71]
[1766514113467,8.38028187,123.76,123.72,0.71]
[1766514113653,8.38028187,123.76,123.72,8.43028187]